bitfinex/quotes_BTCUSD_20240607
["timestamp","ask_amount","ask_price","bid_price","bid_amount"]
[1717720372540,0.2379,70883.0,70881.0,0.16841893]
[1717720372748,0.2379,70883.0,70881.0,0.31049993]
[1717720372957,0.2379,70883.0,70881.0,0.30949993]
[1717720373564,0.2379,70883.0,70882.0,0.161079]
[1717720373770,0.53066467,70883.0,70882.0,0.30849793]
[1717720375761,0.2379,70883.0,70882.0,0.30849793]
[1717720377695,0.30135904,70883.0,70882.0,0.30849793]
[1717720378487,0.2379,70883.0,70882.0,0.30849793]
[1717720380991,0.30136902,70883.0,70882.0,0.30849793]
[1717720382063,0.30136902,70883.0,70882.0,0.32849793]
[1717720382899,0.30136902,70883.0,70882.0,0.30849793]
[1717720383098,0.30136902,70883.0,70882.0,0.32849793]
[1717720383567,0.30136902,70883.0,70882.0,0.36026249]
[1717720383687,0.30136902,70883.0,70882.0,0.32849793]
[1717720384519,0.30136902,70883.0,70882.0,0.30849793]
[1717720385123,0.2379,70883.0,70882.0,0.30849793]
[1717720385355,0.30136413,70883.0,70882.0,0.30849793]
[1717720388384,0.3013628,70883.0,70882.0,0.30849793]
[1717720394689,0.30136246,70883.0,70882.0,0.30849793]
[1717720394892,0.2379,70883.0,70882.0,0.30849793]
[1717720395094,0.23773023,70883.0,70882.0,0.30849793]
[1717720395324,0.30119269,70883.0,70882.0,0.30849793]
[1717720396646,0.30119269,70883.0,70882.0,0.32849793]
[1717720396880,0.30119269,70883.0,70882.0,0.30849793]
[1717720397036,0.30119269,70883.0,70882.0,0.32849793]
[1717720397417,0.06346246,70885.0,70884.0,0.02]
[1717720397633,0.06346246,70886.0,70885.0,0.161073]
[1717720397876,0.10577077,70890.0,70885.0,0.161073]
[1717720397877,0.06346246,70890.0,70889.0,0.161065]
[1717720398101,0.06346246,70890.0,70889.0,0.30548393]
[1717720398315,0.06346246,70890.0,70889.0,0.28548393]
[1717720398545,0.13876246,70891.0,70889.0,0.28548393]
[1717720399587,0.06346246,70890.0,70889.0,0.28548393]
[1717720399727,0.06346246,70890.0,70889.0,0.28648393]
[1717720400121,0.06346246,70890.0,70889.0,0.28748393]
[1717720400374,0.06346246,70890.0,70889.0,0.32948393]
[1717720400843,0.06346246,70891.0,70889.0,0.31048393]
[1717720401112,0.06346246,70891.0,70890.0,0.16741893]
[1717720401619,0.06344623,70891.0,70890.0,0.16741893]
[1717720402424,0.06344623,70891.0,70890.0,0.16841893]
[1717720402669,0.06344623,70891.0,70890.0,0.16941893]
[1717720402943,0.000946,70892.0,70890.0,0.16941893]
[1717720403167,0.06343938,70891.0,70890.0,0.002]
[1717720403367,0.32628584,70891.0,70890.0,0.002]
[1717720403595,0.53838865,70891.0,70890.0,0.002]
[1717720403982,0.53838865,70891.0,70890.0,0.001]
[1717720404388,0.2417,70890.0,70885.0,0.023]
[1717720404596,0.04229646,70886.0,70885.0,0.16741893]
[1717720405804,0.0634447,70887.0,70885.0,0.16741893]
[1717720406467,0.0634447,70886.0,70885.0,0.16841893]
[1717720407114,0.0634447,70886.0,70885.0,0.16941893]
[1717720407538,0.0634447,70886.0,70885.0,0.16841893]
[1717720407754,0.1661,70886.0,70885.0,0.16841893]
[1717720407974,0.2477,70886.0,70881.0,0.15906965]
[1717720408184,0.2477,70886.0,70882.0,0.16741893]
[1717720408388,0.2477,70886.0,70885.0,0.001]
[1717720408810,0.2477,70886.0,70882.0,0.16741893]
[1717720411358,0.2477,70886.0,70882.0,0.16841893]
[1717720412047,0.2477,70886.0,70882.0,0.18841893]
[1717720412540,0.2477,70886.0,70882.0,0.16841893]
[1717720413511,0.0816,70886.0,70884.0,0.02]
[1717720413726,0.0816,70886.0,70882.0,0.30949793]
[1717720414330,0.0816,70886.0,70882.0,0.31035793]
[1717720414676,0.0816,70886.0,70882.0,0.30935793]
[1717720415094,0.0816,70886.0,70884.0,0.001]
[1717720415502,0.0816,70886.0,70882.0,0.30935793]
[1717720415707,0.14506018,70886.0,70882.0,0.30935793]
[1717720415916,0.14506018,70886.0,70882.0,0.31035793]
[1717720416519,0.06346018,70886.0,70883.0,0.02]
[1717720416726,0.06346018,70886.0,70884.0,0.02]
[1717720416931,0.06346018,70886.0,70883.0,0.14441893]
[1717720416932,0.06346018,70886.0,70883.0,0.16441893]
[1717720417349,0.06346018,70886.0,70883.0,0.22271893]
[1717720417996,0.06346018,70886.0,70884.0,0.14441893]
[1717720418210,0.06346018,70886.0,70885.0,0.1013]
[1717720418422,0.06346018,70886.0,70885.0,0.24571893]
[1717720418633,0.06346018,70886.0,70885.0,0.42251893]
[1717720419036,0.06346018,70886.0,70885.0,0.40251893]
[1717720419860,0.06346018,70886.0,70885.0,0.42251893]
[1717720420276,0.06346018,70886.0,70885.0,0.40251893]
[1717720420484,0.06346018,70886.0,70885.0,0.16741893]
[1717720420688,0.04230593,70886.0,70885.0,0.16741893]
[1717720420906,0.06346018,70887.0,70885.0,0.16741893]
[1717720421118,0.1555,70888.0,70886.0,0.14441893]
[1717720421119,0.24011357,70888.0,70886.0,0.14441893]
[1717720421327,0.24011357,70888.0,70887.0,0.023]
[1717720421543,0.44898984,70888.0,70887.0,0.16741893]
[1717720421987,0.44899633,70888.0,70887.0,0.16741893]
[1717720422162,0.53361054,70888.0,70887.0,0.16741893]
[1717720423150,0.44899633,70888.0,70887.0,0.16741893]
[1717720423932,0.44899633,70888.0,70887.0,0.16841893]
[1717720424357,0.53361054,70888.0,70887.0,0.16841893]
[1717720424701,0.53361054,70888.0,70887.0,0.16941893]
[1717720425506,0.37811054,70888.0,70887.0,0.16941893]
[1717720425940,0.08461421,70888.0,70887.0,0.16941893]
[1717720426114,0.37811054,70888.0,70887.0,0.16941893]
[1717720426487,0.08461421,70888.0,70887.0,0.16941893]
[1717720432858,0.0846279,70888.0,70887.0,0.16941893]
[1717720437415,0.0846279,70889.0,70887.0,0.16941893]
[1717720437590,0.0846279,70889.0,70888.0,0.14441893]
[1717720437803,0.08463883,70889.0,70888.0,0.16741893]
[1717720438052,0.37826048,70889.0,70888.0,0.16741893]
[1717720438693,0.29362165,70889.0,70888.0,0.16741893]
[1717720439332,0.29362165,70889.0,70888.0,0.16841893]
[1717720440665,0.29362165,70889.0,70888.0,0.16941893]
[1717720441295,0.151146,70891.0,70888.0,0.16941893]
[1717720441529,0.10581651,70889.0,70888.0,0.16941893]
[1717720442137,0.10581651,70889.0,70888.0,0.16841893]
[1717720442343,0.39864895,70889.0,70888.0,0.16941893]
[1717720442563,0.39864895,70889.0,70888.0,0.16841893]
[1717720442779,0.63944895,70889.0,70882.0,0.00086]
[1717720443138,0.63944895,70889.0,70883.0,0.14441893]
[1717720443139,0.06349436,70884.0,70883.0,0.14441893]
[1717720443279,0.06349436,70884.0,70883.0,0.16741893]
[1717720444983,0.06349436,70884.0,70883.0,0.18741893]
[1717720445180,0.06349436,70884.0,70883.0,0.43271893]
[1717720446648,0.06349436,70884.0,70883.0,0.41271893]
[1717720446856,0.06349436,70884.0,70883.0,0.43271893]
[1717720447938,0.06349436,70885.0,70884.0,0.02]
[1717720448173,0.06349436,70885.0,70884.0,0.16441893]
[1717720448380,0.08465914,70886.0,70884.0,0.16441893]
[1717720450399,0.08465914,70886.0,70884.0,0.16541893]
[1717720452665,0.08465914,70886.0,70885.0,0.02]
[1717720452874,0.08465914,70886.0,70885.0,0.42421893]
[1717720453085,0.08465914,70887.0,70886.0,0.1008]
[1717720453297,0.08465914,70887.0,70886.0,0.62558993]
[1717720453505,0.08465914,70888.0,70887.0,0.397869]
[1717720453710,0.08465914,70889.0,70888.0,0.397867]
[1717720453963,0.06350944,70889.0,70888.0,0.56528593]
[1717720455108,0.08561092,70891.0,70890.0,0.0806]
[1717720455317,0.000946,70891.0,70890.0,0.26801893]
[1717720455545,0.2999664,70891.0,70890.0,0.26801893]
[1717720456175,0.000946,70891.0,70890.0,0.26801893]
[1717720457231,0.000946,70891.0,70890.0,0.26901893]
[1717720457452,0.06442784,70891.0,70890.0,0.26901893]
[1717720457872,0.000946,70891.0,70890.0,0.27001893]
[1717720458091,0.04326576,70891.0,70890.0,0.63288193]
[1717720458299,0.000946,70891.0,70890.0,0.63288193]
[1717720459040,0.000946,70891.0,70890.0,0.63188193]
[1717720459311,0.000946,70891.0,70890.0,0.63088193]
[1717720459516,0.000946,70891.0,70890.0,0.63188193]
[1717720459725,0.000946,70891.0,70890.0,0.63288193]
[1717720460504,0.000946,70891.0,70890.0,0.63088193]
[1717720460737,0.000946,70891.0,70890.0,0.63288193]
[1717720461340,0.000946,70891.0,70890.0,0.63188193]
[1717720462345,0.000946,70891.0,70890.0,0.63088193]
[1717720462560,0.000946,70891.0,70890.0,0.63188193]
[1717720462766,0.000946,70891.0,70890.0,0.63288193]
[1717720463196,0.000946,70891.0,70890.0,0.73288193]
[1717720465309,0.000946,70891.0,70890.0,0.67258193]
[1717720465447,0.000946,70891.0,70890.0,0.73288193]
[1717720469141,0.000946,70891.0,70890.0,0.83288193]
[1717720469826,0.000946,70891.0,70890.0,0.84974243]
[1717720472741,0.000946,70891.0,70890.0,0.82974243]
[1717720473512,0.000946,70891.0,70890.0,0.84974243]
[1717720473720,0.000946,70891.0,70890.0,0.82974243]
[1717720474114,0.000946,70891.0,70890.0,0.88150699]
[1717720474377,0.000946,70891.0,70890.0,0.84974243]
[1717720474617,0.000946,70891.0,70890.0,0.82974243]
[1717720475319,0.000946,70891.0,70890.0,1.13186943]
[1717720476259,0.000946,70891.0,70890.0,1.13086943]
[1717720476466,0.000946,70891.0,70890.0,1.12986943]
[1717720476680,0.000946,70891.0,70890.0,1.10986943]
[1717720476885,0.000946,70891.0,70890.0,1.13086943]
[1717720478964,0.000946,70891.0,70890.0,1.12986943]
[1717720480628,0.000946,70891.0,70890.0,1.10986943]
[1717720481070,0.000946,70891.0,70890.0,1.12986943]
[1717720481491,0.000946,70891.0,70890.0,1.10986943]
[1717720481706,0.000946,70891.0,70890.0,1.12986943]
[1717720481910,0.000946,70891.0,70890.0,1.06956943]
[1717720482156,0.000946,70891.0,70890.0,1.12986943]
[1717720485449,0.000946,70891.0,70890.0,1.06956943]
[1717720485659,0.000946,70891.0,70890.0,1.12986943]
[1717720491046,0.000946,70891.0,70890.0,1.41199643]
[1717720491605,0.000946,70891.0,70890.0,1.42199643]
[1717720493854,0.000946,70891.0,70890.0,1.41199643]
[1717720500319,0.000946,70891.0,70890.0,1.42199643]
[1717720500973,0.000946,70891.0,70890.0,1.41199643]
[1717720502139,0.000946,70891.0,70890.0,1.35169643]
[1717720502349,0.000946,70891.0,70890.0,0.70746943]
[1717720502556,0.076446,70891.0,70890.0,0.80746943]
[1717720502769,0.076446,70891.0,70890.0,0.72746943]
[1717720503181,0.076446,70891.0,70890.0,0.82746943]
[1717720503353,0.076446,70891.0,70890.0,0.72746943]
[1717720504016,0.076446,70891.0,70890.0,0.42534243]
[1717720504231,0.234946,70891.0,70890.0,0.42534243]
[1717720506775,0.234946,70891.0,70890.0,0.28427943]
[1717720506984,0.234946,70891.0,70890.0,0.42534243]
[1717720515588,0.234946,70891.0,70890.0,0.44534243]
[1717720516119,0.234946,70891.0,70890.0,0.42534243]
[1717720516809,0.234946,70891.0,70890.0,0.44534243]
[1717720517241,0.234946,70891.0,70890.0,0.42534243]
[1717720518435,0.234946,70891.0,70890.0,0.44534243]
[1717720519623,0.234946,70891.0,70890.0,0.42534243]
[1717720520458,0.234946,70891.0,70890.0,0.44534243]
[1717720522785,0.234946,70891.0,70890.0,0.42534243]
[1717720523163,0.234946,70891.0,70890.0,0.44534243]
[1717720528431,0.000946,70891.0,70890.0,0.44534243]
[1717720531384,0.000946,70891.0,70890.0,0.42534243]
[1717720533372,0.000946,70891.0,70890.0,0.44534243]
[1717720533577,0.000946,70891.0,70890.0,0.51851876]
[1717720533993,0.000946,70891.0,70890.0,0.49851876]
[1717720534657,0.000946,70891.0,70890.0,0.51851876]
[1717720535773,0.000946,70891.0,70890.0,0.44534243]
[1717720535984,0.2936569,70891.0,70890.0,0.44534243]
[1717720536682,0.000946,70891.0,70890.0,0.44534243]
[1717720543384,0.000946,70891.0,70890.0,0.42534243]
[1717720545342,0.000946,70891.0,70890.0,0.44534243]
[1717720550001,0.04327195,70891.0,70890.0,0.44534243]
[1717720550218,0.000946,70891.0,70890.0,0.44534243]
[1717720550640,0.04327195,70891.0,70890.0,0.44534243]
[1717720551522,0.33598355,70891.0,70890.0,0.44534243]
[1717720551947,0.04327195,70891.0,70890.0,0.44534243]
[1717720552406,0.000946,70891.0,70890.0,0.44534243]
[1717720553909,0.04327195,70891.0,70890.0,0.44534243]
[1717720554135,0.000946,70891.0,70890.0,0.44534243]
[1717720554347,0.04327195,70891.0,70890.0,0.44534243]
[1717720554557,0.04327195,70891.0,70890.0,0.52444243]
[1717720555473,0.33598557,70891.0,70890.0,0.52444243]
[1717720555693,0.04327195,70891.0,70890.0,0.52444243]
[1717720555910,0.000946,70891.0,70890.0,0.52444243]
[1717720556135,0.04327195,70891.0,70890.0,0.52444243]
[1717720557227,0.000946,70891.0,70890.0,0.52444243]
[1717720557448,0.04327195,70891.0,70890.0,0.52444243]
[1717720558130,0.000946,70891.0,70890.0,0.52444243]
[1717720558353,0.04327195,70891.0,70890.0,0.52444243]
[1717720558566,0.04327195,70891.0,70890.0,0.50444243]
[1717720559721,0.04327195,70891.0,70890.0,0.52444243]
[1717720560201,0.04327195,70891.0,70890.0,0.50444243]
[1717720560453,0.04327195,70891.0,70890.0,0.52444243]
[1717720560925,0.04327195,70891.0,70890.0,0.50444243]
[1717720561142,0.04327195,70891.0,70890.0,0.0168605]
[1717720561345,0.04327195,70891.0,70883.0,0.00086]
[1717720561346,0.2332,70890.0,70883.0,0.00086]
[1717720561580,0.2332,70884.0,70883.0,0.14527893]
[1717720561781,0.27553551,70884.0,70883.0,0.14527893]
[1717720561985,0.2332,70884.0,70883.0,0.00086]
[1717720562195,0.61513243,70884.0,70883.0,0.00086]
[1717720562461,0.2332,70884.0,70883.0,0.00086]
[1717720562674,0.67125439,70884.0,70883.0,0.00186]
[1717720562955,0.67125439,70884.0,70883.0,0.00086]
[1717720563177,0.7021023,70884.0,70883.0,0.00886]
[1717720564526,0.80780597,70884.0,70883.0,0.00886]
[1717720564976,0.78666443,70884.0,70883.0,0.00886]
[1717720565191,0.78666443,70884.0,70883.0,0.00086]
[1717720565399,0.78666443,70884.0,70883.0,0.00886]
[1717720565400,0.7021023,70884.0,70883.0,0.00886]
[1717720565854,0.7021023,70884.0,70883.0,0.00086]
[1717720566068,0.79646522,70884.0,70883.0,0.00086]
[1717720566309,0.71492375,70884.0,70883.0,0.00086]
[1717720566528,0.57384875,70884.0,70883.0,0.00086]
[1717720566973,0.33043893,70884.0,70883.0,0.00086]
[1717720567189,0.26704791,70884.0,70883.0,0.00086]
[1717720568398,0.30929797,70884.0,70883.0,0.00086]
[1717720568834,0.26704791,70884.0,70883.0,0.00086]
[1717720569340,0.30929318,70884.0,70883.0,0.00086]
[1717720569596,0.26704791,70884.0,70883.0,0.00086]
[1717720570346,0.30929112,70884.0,70883.0,0.00086]
[1717720570764,0.26704791,70884.0,70883.0,0.00086]
[1717720571306,0.30928418,70884.0,70883.0,0.00086]
[1717720571734,0.30928418,70884.0,70879.0,0.00916695]
[1717720572003,0.2362,70884.0,70879.0,0.141085]
[1717720572211,0.003,70884.0,70882.0,0.141079]
[1717720572472,0.0787,70884.0,70877.0,0.11675718]
[1717720572725,0.0787,70884.0,70877.0,0.26117611]
[1717720572726,0.1522,70883.0,70877.0,0.26117611]
[1717720574197,0.1522,70883.0,70877.0,0.28117611]
[1717720574883,0.1522,70883.0,70877.0,0.28317611]
[1717720575121,0.06334013,70888.0,70877.0,0.28317611]
[1717720575122,0.12402675,70887.0,70880.0,0.02]
[1717720575329,0.12402675,70887.0,70878.0,0.39061893]
[1717720575330,0.0731907,70886.0,70881.0,0.30849893]
[1717720575552,0.2387,70887.0,70881.0,0.30849893]
[1717720576223,0.07318713,70886.0,70881.0,0.30849893]
[1717720576638,0.07318713,70886.0,70877.0,0.11761718]
[1717720576845,0.07318713,70886.0,70877.0,0.01761718]
[1717720576846,0.373673,70885.0,70877.0,0.01761718]
[1717720577082,0.07318713,70884.0,70877.0,0.11761718]
[1717720578805,0.07318713,70884.0,70877.0,0.12061718]
[1717720579036,0.07319328,70883.0,70877.0,0.12061718]
[1717720579253,0.07319328,70882.0,70877.0,0.12061718]
[1717720579458,0.07319328,70881.0,70877.0,0.12061718]
[1717720579685,0.41589592,70885.0,70877.0,0.12061718]
[1717720579901,0.07319328,70884.0,70877.0,0.12061718]
[1717720580124,0.07319328,70884.0,70877.0,0.11861718]
[1717720580611,0.373673,70885.0,70877.0,0.11861718]
[1717720580612,0.07319339,70883.0,70877.0,0.11861718]
[1717720580810,0.07319339,70882.0,70877.0,0.11761718]
[1717720581049,0.07319339,70881.0,70877.0,0.11961718]
[1717720581309,0.07319339,70880.0,70877.0,0.11961718]
[1717720581666,0.373673,70885.0,70877.0,0.13961718]
[1717720581874,0.07319343,70884.0,70877.0,0.11761718]
[1717720582013,0.07319343,70884.0,70877.0,0.12061718]
[1717720582216,0.07319343,70883.0,70877.0,0.12061718]
[1717720582424,0.373673,70885.0,70877.0,0.12061718]
[1717720582425,0.07319343,70882.0,70877.0,0.12061718]
[1717720582628,0.373673,70885.0,70877.0,0.12461718]
[1717720582870,0.07319356,70884.0,70877.0,0.11761718]
[1717720583075,0.07319356,70883.0,70877.0,0.11761718]
[1717720583423,0.07319356,70882.0,70877.0,0.11761718]
[1717720583632,0.07319356,70881.0,70877.0,0.11761718]
[1717720583869,0.373673,70885.0,70877.0,0.11861718]
[1717720584052,0.07319348,70884.0,70877.0,0.11861718]
[1717720584286,0.07319348,70883.0,70877.0,0.11861718]
[1717720584486,0.07319348,70882.0,70877.0,0.11861718]
[1717720584635,0.07319348,70881.0,70877.0,0.11861718]
[1717720584915,0.07319348,70880.0,70877.0,0.11861718]
[1717720585098,0.4168908,70885.0,70877.0,0.11861718]
[1717720585099,0.07319348,70884.0,70877.0,0.11761718]
[1717720585289,0.07319348,70883.0,70877.0,0.11761718]
[1717720585453,0.07319348,70882.0,70877.0,0.12261718]
[1717720585664,0.07319348,70881.0,70877.0,0.11961718]
[1717720585977,0.07319348,70880.0,70877.0,0.12561718]
[1717720586181,0.4158908,70885.0,70877.0,0.12561718]
[1717720586383,0.07319364,70884.0,70877.0,0.11961718]
[1717720586584,0.07319364,70883.0,70877.0,0.12261718]
[1717720586784,0.07319364,70882.0,70877.0,0.12261718]
[1717720586980,0.4158908,70885.0,70877.0,0.11761718]
[1717720586981,0.07319364,70881.0,70877.0,0.11761718]
[1717720587256,0.4158908,70885.0,70877.0,0.11761718]
[1717720587257,0.07319364,70880.0,70877.0,0.11761718]
[1717720587435,0.07319364,70879.0,70877.0,0.11761718]
[1717720587642,0.4158908,70885.0,70877.0,0.11761718]
[1717720587860,0.07319366,70884.0,70877.0,0.11761718]
[1717720588061,0.07319366,70883.0,70877.0,0.11761718]
[1717720588306,0.07319366,70882.0,70877.0,0.12461718]
[1717720588507,0.07319366,70881.0,70877.0,0.12461718]
[1717720588750,0.07319366,70880.0,70877.0,0.11861718]
[1717720588957,0.07319366,70879.0,70877.0,0.11861718]
[1717720589179,0.07319366,70878.0,70877.0,0.11761718]
[1717720589391,0.11541146,70884.0,70877.0,0.11761718]
[1717720589576,0.07319366,70883.0,70877.0,0.12261718]
[1717720589792,0.07319366,70883.0,70877.0,0.11961718]
[1717720589968,0.07319366,70882.0,70877.0,0.11761718]
[1717720590176,0.07319366,70881.0,70877.0,0.12461718]
[1717720590379,0.07319366,70880.0,70877.0,0.13161718]
[1717720590520,0.0422178,70884.0,70877.0,0.13161718]
[1717720590521,0.07319366,70879.0,70877.0,0.13161718]
[1717720590725,0.07319366,70878.0,70877.0,0.13161718]
[1717720591218,0.07319366,70878.0,70877.0,0.27680826]
[1717720591861,0.07319366,70878.0,70877.0,0.26280826]
[1717720592063,0.07319366,70878.0,70877.0,0.26480826]
[1717720592241,0.07319366,70878.0,70877.0,0.26580826]
[1717720592442,0.07319366,70878.0,70877.0,0.26480826]
[1717720592651,0.07319369,70878.0,70877.0,0.26280826]
[1717720592858,0.07319369,70878.0,70877.0,0.27080826]
[1717720593074,0.07319369,70878.0,70877.0,0.27780826]
[1717720595154,0.07319369,70878.0,70877.0,0.29780826]
[1717720596200,0.07319369,70878.0,70877.0,0.27780826]
[1717720596419,0.07319369,70878.0,70877.0,0.29780826]
[1717720597055,0.07319369,70878.0,70877.0,0.27780826]
[1717720597330,0.07319369,70878.0,70877.0,0.29780826]
[1717720597925,0.373673,70885.0,70879.0,0.0756]
[1717720598131,0.07318841,70884.0,70880.0,0.14519108]
[1717720598337,0.07318841,70884.0,70879.0,0.0756]
[1717720598338,0.1154331,70884.0,70879.0,0.0756]
[1717720598571,0.07318841,70883.0,70880.0,0.14445692]
[1717720598748,0.07318841,70882.0,70879.0,0.0756]
[1717720598955,0.07318841,70881.0,70880.0,0.14433468]
[1717720599582,0.07318841,70881.0,70880.0,0.14533468]
[1717720599788,0.07318841,70881.0,70880.0,0.14433468]
[1717720600198,0.07318841,70881.0,70880.0,0.14933468]
[1717720601828,0.07318841,70881.0,70880.0,0.15233468]
[1717720603244,0.1154331,70881.0,70880.0,0.15233468]
[1717720604377,0.07318841,70881.0,70880.0,0.15233468]
[1717720606022,0.07318841,70881.0,70880.0,0.15301995]
[1717720606023,0.13667398,70881.0,70880.0,0.15301995]
[1717720606435,0.07319086,70881.0,70880.0,0.15301995]
[1717720607070,0.38274247,70881.0,70880.0,0.15301995]
[1717720607301,0.38274247,70881.0,70880.0,0.008]
[1717720607302,0.46738663,70881.0,70880.0,0.008]
[1717720607506,0.38274247,70881.0,70880.0,0.008]
[1717720607744,0.72545051,70881.0,70880.0,0.008]
[1717720607942,0.72639651,70881.0,70880.0,0.008]
[1717720608527,0.68087129,70881.0,70880.0,0.008]
[1717720608903,0.58305229,70881.0,70880.0,0.008]
[1717720609104,0.82195229,70881.0,70880.0,0.008]
[1717720609507,0.94894256,70881.0,70880.0,0.008]
[1717720609913,1.02305121,70881.0,70880.0,0.003]
[1717720610147,1.16816908,70881.0,70880.0,0.003]
[1717720610379,1.09406043,70881.0,70880.0,0.003]
[1717720610737,0.141087,70878.0,70877.0,0.00086]
[1717720610945,0.81931229,70878.0,70877.0,0.00086]
[1717720611991,0.81931229,70878.0,70877.0,0.00186]
[1717720612405,0.81931229,70878.0,70877.0,0.00386]
[1717720613052,0.81276641,70878.0,70877.0,0.00386]
[1717720613250,0.91194155,70878.0,70877.0,0.00386]
[1717720614099,0.85164155,70878.0,70877.0,0.00386]
[1717720615587,0.85164155,70878.0,70877.0,0.25126]
[1717720615588,0.4799252,70878.0,70877.0,0.25126]
[1717720615781,0.07319086,70878.0,70877.0,0.25126]
[1717720615987,0.07319086,70878.0,70877.0,0.08666]
[1717720616437,0.15778302,70878.0,70877.0,0.08666]
[1717720616679,0.46321058,70878.0,70877.0,0.08666]
[1717720616909,0.46321058,70878.0,70877.0,0.00386]
[1717720617531,0.52351058,70878.0,70877.0,0.00386]
[1717720617744,0.46321058,70878.0,70877.0,0.00386]
[1717720618824,0.46321058,70878.0,70877.0,0.24336]
[1717720619041,0.07319086,70878.0,70877.0,0.24336]
[1717720619265,0.13663194,70878.0,70877.0,0.24336]
[1717720619487,0.04229158,70879.0,70877.0,0.24336]
[1717720620570,0.04229158,70879.0,70877.0,0.24236]
[1717720620786,0.04229158,70879.0,70877.0,0.24036]
[1717720621027,0.04329158,70879.0,70878.0,0.02]
[1717720621233,0.04329158,70879.0,70878.0,0.42691893]
[1717720621468,0.001,70879.0,70878.0,0.42691893]
[1717720622131,0.000946,70881.0,70879.0,0.2395]
[1717720622345,0.000946,70881.0,70880.0,0.24841893]
[1717720623281,0.000946,70881.0,70880.0,0.26841893]
[1717720625467,0.000946,70881.0,70880.0,0.41950193]
[1717720625683,0.000946,70881.0,70880.0,0.59380193]
[1717720628621,0.000946,70881.0,70880.0,0.57380193]
[1717720628822,0.000946,70881.0,70880.0,0.59380193]
[1717720630028,0.000946,70881.0,70880.0,0.57380193]
[1717720630244,0.000946,70881.0,70880.0,0.59380193]
[1717720631505,0.000946,70881.0,70880.0,0.57380193]
[1717720633806,0.000946,70881.0,70880.0,0.59050529]
[1717720635533,0.000946,70881.0,70880.0,0.61050529]
[1717720637368,0.000946,70881.0,70880.0,0.59050529]
[1717720639647,0.000946,70881.0,70880.0,0.61050529]
[1717720639852,0.000946,70881.0,70880.0,0.59050529]
[1717720640741,0.000946,70881.0,70880.0,0.20212229]
[1717720640957,0.241146,70881.0,70880.0,0.018]
[1717720642501,0.45183367,70881.0,70880.0,0.018]
[1717720642707,0.5152191,70881.0,70880.0,0.018]
[1717720643348,0.5152191,70881.0,70880.0,0.008]
[1717720643580,0.141083,70880.0,70879.0,0.00028217]
[1717720643782,0.201383,70880.0,70879.0,0.00028217]
[1717720644854,0.201383,70880.0,70879.0,0.00328217]
[1717720646292,0.201383,70880.0,70879.0,0.00228217]
[1717720646578,0.201383,70880.0,70879.0,0.00028217]
[1717720647446,0.06433143,70881.0,70879.0,0.00028217]
[1717720647645,0.06433143,70881.0,70880.0,0.45964717]
[1717720647844,0.000946,70881.0,70880.0,0.48264717]
[1717720649117,0.000946,70881.0,70880.0,0.41041893]
[1717720649675,0.002946,70881.0,70880.0,0.41041893]
[1717720649875,0.003946,70881.0,70880.0,0.41041893]
[1717720650083,0.002946,70881.0,70880.0,0.41041893]
[1717720650280,0.000946,70881.0,70880.0,0.41041893]
[1717720650519,0.000946,70881.0,70880.0,0.41641893]
[1717720650926,0.000946,70881.0,70880.0,0.42041893]
[1717720652316,0.000946,70881.0,70880.0,0.58150193]
[1717720652959,0.000946,70881.0,70880.0,0.56150193]
[1717720655786,0.000946,70881.0,70880.0,0.58150193]
[1717720657239,0.000946,70881.0,70880.0,0.56150193]
[1717720657680,0.000946,70881.0,70880.0,0.58150193]
[1717720657903,0.000946,70881.0,70880.0,0.56150193]
[1717720660738,0.000946,70881.0,70880.0,0.58150193]
[1717720661083,0.000946,70881.0,70880.0,0.56150193]
[1717720661304,0.000946,70881.0,70880.0,0.58150193]
[1717720662136,0.000946,70881.0,70880.0,0.56150193]
[1717720669359,0.000946,70881.0,70880.0,0.58150193]
[1717720669565,0.000946,70881.0,70880.0,0.56150193]
[1717720675323,0.000946,70881.0,70880.0,0.58150193]
[1717720675745,0.000946,70881.0,70880.0,0.56150193]
[1717720679677,0.000946,70881.0,70880.0,0.58150193]
[1717720680347,0.000946,70881.0,70880.0,0.56150193]
[1717720681474,0.000946,70881.0,70880.0,0.58150193]
[1717720681689,0.000946,70881.0,70880.0,0.56150193]
[1717720681895,0.000946,70881.0,70880.0,0.58150193]
[1717720682130,0.000946,70881.0,70880.0,0.56150193]
[1717720682398,0.000946,70881.0,70880.0,0.58150193]
[1717720683286,0.000946,70881.0,70880.0,0.56150193]
[1717720683501,0.000946,70881.0,70880.0,0.58150193]
[1717720683716,0.000946,70881.0,70880.0,0.56150193]
[1717720683932,0.000946,70881.0,70880.0,0.58150193]
[1717720690094,0.000946,70881.0,70880.0,0.56150193]
[1717720690409,0.04325643,70881.0,70880.0,0.56150193]
[1717720691508,0.0429744,70881.0,70880.0,0.56150193]
[1717720692182,0.00066397,70881.0,70880.0,0.56150193]
[1717720692642,0.00066397,70881.0,70880.0,0.58150193]
[1717720693302,0.06412962,70881.0,70880.0,0.58150193]
[1717720693969,0.06412962,70881.0,70880.0,0.56150193]
[1717720694189,0.06412962,70881.0,70880.0,0.58150193]
[1717720695342,0.06412962,70881.0,70880.0,0.31850193]
[1717720695576,0.06412962,70881.0,70880.0,0.17741893]
[1717720700499,0.0641854,70881.0,70880.0,0.17741893]
[1717720701411,0.0641854,70881.0,70880.0,0.19741893]
[1717720701597,0.0641854,70881.0,70880.0,0.17741893]
[1717720702298,0.35693976,70881.0,70880.0,0.17741893]
[1717720703211,0.0641854,70881.0,70880.0,0.17741893]
[1717720703880,0.35693976,70881.0,70880.0,0.17741893]
[1717720710598,0.36951833,70881.0,70880.0,0.01]
[1717720716602,0.29341833,70881.0,70880.0,0.01]
[1717720717702,0.28909477,70881.0,70880.0,0.01]
[1717720718602,0.28909477,70881.0,70880.0,0.03]
[1717720719093,0.28909477,70881.0,70880.0,0.113]
[1717720719746,0.35261885,70881.0,70880.0,0.113]
[1717720720400,0.28909477,70881.0,70880.0,0.113]
[1717720720877,0.08469911,70882.0,70881.0,0.02]
[1717720721317,0.31067843,70882.0,70881.0,0.02]
[1717720722290,0.31067843,70882.0,70881.0,0.027]
[1717720722711,0.39537754,70883.0,70882.0,0.02]
[1717720722920,0.3955396,70883.0,70882.0,0.02]
[1717720723134,0.08469911,70883.0,70882.0,0.02]
[1717720723343,0.39560593,70883.0,70882.0,0.02]
[1717720723940,0.39560593,70883.0,70882.0,0.022]
[1717720724143,0.39560593,70883.0,70882.0,0.002]
[1717720724752,0.39560593,70883.0,70882.0,0.007]
[1717720725503,0.39560593,70883.0,70882.0,0.027]